Workbook

Sheet Sheet1
B1: Exer. 8 - Simulação Automático
E2: Min | F2: Max
C3: Tempo Vida | E3: 2 | F3: 5
C4: Nº Acidentes/mês | E4: =1/12 -> 0.08333333333 | G4: Período Revisão (meses) | K4: 3
C5: Custo Peça | E5: 100 | G5: Intervalo mínimo Subst. Peça | K5: 1.5
C6: Custo/Inspecção/Ver | E6: 1000 | G6: Nº de Runs | K6: 150
C7: Custo/paragem | E7: 2000 | U7: Custos Mensais
T8: Peças | U8: Revisões | V8: Paragens | W8: Totais
B9: Tempo | C9: Tipo | D9: Subst. | E9: Prox. Inter. acidentes | G9: Prox | H9: Bom Func. Peça | J9: Prox. | K9: Próx. | L9: Próximo | M9: Tipo | N9: Nº | O9: Nº | P9: Nº | Q9: Nº | S9: D.Pad. | T9: =STDEV(T11:T160) -> 4.391253219 | U9: =STDEV(U11:U160) -> 12.76640192 | V9: =STDEV(V11:V160) -> 157.0133922 | W9: =STDEV(W11:W160) -> 155.9832395
C10: Acontec. | D10: Peça? | E10: NPA | F10: Meses | G10: Acidente | H10: NPA | I10: Meses | J10: Avaria | K10: Revisão | L10: Acontec. | M10: Acontec. | N10: Peças | O10: Revis. | P10: Ava. | Q10: Ac. | S10: Média | T10: =AVERAGE(T11:T160) -> 42.85367944 | U10: =AVERAGE(U11:U160) -> 324.9111109 | V10: =AVERAGE(V11:V160) -> 474.6701734 | W10: =AVERAGE(W11:W160) -> 842.4349637
B11: 0 | C11: Acidente | D11: Sim | E11: =IF(C11="Acidente", RAND(),"") -> 0.1356070187 | F11: =IF(E11="","",-1/$E$4*LN(E11)) -> 23.97592973 | G11: =+F11 -> 23.97592973 | H11: =RAND() -> 0.05862798506 | I11: =IF(H11="",0,$E$3+H11*($F$3-$E$3)) -> 2.175883955 | J11: =+I11 -> 2.175883955 | K11: =+$K$4 -> 3 | L11: =MIN(G11,J11,K11) -> 2.175883955 | M11: =IF(G11<K11,"Acidente",IF(I11<K11,"Avaria","Revisão")) -> Avaria | N11: =IF(D11="Sim",1,0) -> 1 | O11: =IF(C11="Revisão",1,0) -> 0 | P11: =IF(C11="Avaria",1,0) -> 0 | Q11: =IF(C11="Acidente",1,0) -> 1 | T11: =+F28 -> 37.70556713 | U11: =+F29 -> 308.5000947 | V11: =+F30 -> 479.8890362 | W11: =+F31 -> 826.0946981
B12: =+L11 -> 2.175883955 | C12: Avaria | D12: =IF(C12="Acidente","Sim",IF(C12="Avaria","Sim",IF(C12="Revisão",IF((B12-B11)>$K$5,"Sim","Não")))) -> Sim | G12: =IF(F12="",G11,+G11+F12) -> 23.97592973 | H12: =IF(D12="Sim",RAND(),IF(J11>L11,"",RAND())) -> 0.6306751322 | I12: =IF(H12="",0,$E$3+H12*($F$3-$E$3)) -> 3.892025397 | J12: =IF(D12="Sim",B12+I12,IF(J11>K11,J11,B12+I12)) -> 6.067909352 | K12: =IF(B12<K11,K11,K11+$K$4) -> 3 | L12: 3 | M12: =IF(G12<=L12,"Acidente",IF(J12<K12,"Avaria","Revisão")) -> Revisão | N12: =IF(D12="Sim",1,0) -> 1 | O12: =IF(C12="Revisão",1,0) -> 0 | P12: =IF(C12="Avaria",1,0) -> 1 | Q12: =IF(C12="Acidente",1,0) -> 0 | S12: 1 | T12: 45.83333333 | U12: 333.3333333 | V12: 666.6666667 | W12: 1045.833333
B13: 3 | C13: Revisão | D13: =IF(C13="Acidente","Sim",IF(C13="Avaria","Sim",IF(C13="Revisão",IF((B13-B12)>$K$5,"Sim","Não")))) -> Não | G13: 23.97592973 | H13: =IF(D13="Sim",RAND(),IF(J12>L12,"",RAND())) ->  | I13: =IF(H13="",0,$E$3+H13*($F$3-$E$3)) -> 0 | J13: =IF(D13="Sim",B13+I13,IF(J12>K12,J12,B13+I13)) -> 6.067909352 | K13: =IF(B13<K12,K12,K12+$K$4) -> 6 | L13: 6 | M13: Revisão | N13: 0 | O13: 1 | P13: 0 | Q13: 0 | S13: =+S12+1 -> 2 | T13: 43.33333333 | U13: 333.3333333 | V13: 400 | W13: 776.6666667
B14: 6 | C14: Revisão | D14: Sim | G14: 23.97592973 | H14: 0.1948503638 | I14: 2.584551091 | J14: 8.584551091 | K14: 9 | L14: 8.584551091 | M14: Avaria | N14: 1 | O14: 1 | P14: 0 | Q14: 0 | S14: =+S13+1 -> 3 | T14: 46.66666667 | U14: 333.3333333 | V14: 400 | W14: 780
B15: 8.584551091 | C15: Avaria | D15: Sim | G15: 23.97592973 | H15: 0.1425805747 | I15: 2.427741724 | J15: 11.01229282 | K15: 9 | L15: 9 | M15: Revisão | N15: 1 | O15: 0 | P15: 1 | Q15: 0 | S15: 4 | T15: 42.42424242 | U15: 333.3333333 | V15: 303.030303 | W15: 678.7878788
B16: 9 | C16: Revisão | D16: Não | G16: 23.97592973 | I16: 0 | J16: 11.01229282 | K16: 12 | L16: 11.01229282 | M16: Avaria | N16: 0 | O16: 1 | P16: 0 | Q16: 0 | S16: 5 | T16: 42.42424242 | U16: 333.3333333 | V16: 303.030303 | W16: 678.7878788
B17: 11.01229282 | C17: Avaria | D17: Sim | G17: 23.97592973 | H17: 0.8401438322 | I17: 4.520431497 | J17: 15.53272431 | K17: 12 | L17: 12 | M17: Revisão | N17: 1 | O17: 0 | P17: 1 | Q17: 0 | S17: 6 | T17: 36.66666667 | U17: 333.3333333 | V17: 400 | W17: 770
B18: 12 | C18: Revisão | D18: Não | G18: 23.97592973 | I18: 0 | J18: 15.53272431 | K18: 15 | L18: 15 | M18: =IF(G18<(L18+0.09),"Acidente",IF(J18<K18,"Avaria","Revisão")) -> Revisão | N18: 0 | O18: 1 | P18: 0 | Q18: 0 | S18: 7 | T18: 43.38653864 | U18: 300.3683445 | V18: 467.2396469 | W18: 810.99453
B19: =+L18 -> 15 | C19: =+M18 -> Revisão | D19: Sim | E19: =IF(C19="Acidente", RAND(),"") ->  | F19: =IF(E19="","",-1/$E$4*LN(E19)) ->  | G19: =IF(F19="",G18,+G18+F19) -> 23.97592973 | H19: =IF(D19="Sim",RAND(),IF(J18>L18,"",RAND())) -> 0.8383343531 | I19: 4.515003059 | J19: =IF(D19="Sim",B19+I19,IF(J18>K18,J18,B19+I19)) -> 19.51500306 | K19: 18 | L19: =MIN(G19,J19,K19) -> 18 | M19: =IF(G19<(L19+0.09),"Acidente",IF(J19<K19,"Avaria","Revisão")) -> Revisão | N19: =IF(D19="Sim",1,0) -> 1 | O19: =IF(C19="Revisão",1,0) -> 1 | P19: =IF(C19="Avaria",1,0) -> 0 | Q19: =IF(C19="Acidente",1,0) -> 0 | S19: 8 | T19: 38.46153846 | U19: 333.3333333 | V19: 153.8461538 | W19: 525.6410256
B20: 18 | C20: Revisão | D20: Sim | G20: 23.97592973 | H20: 0.2827685922 | I20: 2.848305777 | J20: 20.84830578 | K20: 21 | L20: 20.84830578 | M20: Avaria | N20: 1 | O20: 1 | P20: 0 | Q20: 0 | S20: 9 | T20: 45.83333333 | U20: 333.3333333 | V20: 666.6666667 | W20: 1045.833333
B21: 20.84830578 | C21: Avaria | D21: Sim | G21: 23.97592973 | H21: 0.3994038615 | I21: 3.198211585 | J21: 24.04651736 | K21: 21 | L21: 21 | M21: Revisão | N21: 1 | O21: 0 | P21: 1 | Q21: 0 | S21: 10 | T21: 41.66666667 | U21: 333.3333333 | V21: 666.6666667 | W21: 1041.666667
B22: 21 | C22: Revisão | D22: Não | G22: 23.97592973 | I22: 0 | J22: 24.04651736 | K22: 24 | L22: 23.97592973 | M22: Acidente | N22: 0 | O22: 1 | P22: 0 | Q22: 0 | S22: 11 | T22: 43.97752975 | U22: 329.8314731 | V22: 513.0711804 | W22: 886.8801832
B23: 23.97592973 | C23: Acidente | D23: Sim | E23: 0.648480449 | F23: 5.197481084 | G23: 29.17341082 | H23: 0.8957456077 | I23: 4.687236823 | J23: 28.66316655 | K23: 24 | L23: 24 | M23: Revisão | N23: 1 | O23: 0 | P23: 0 | Q23: 1 | S23: 12 | T23: 39.39393939 | U23: 333.3333333 | V23: 303.030303 | W23: 675.7575758
B24: 24 | C24: Revisão | D24: Não | G24: 29.17341082 | I24: 0 | J24: 28.66316655 | K24: 27 | L24: 27 | M24: Revisão | N24: 0 | O24: 1 | P24: 0 | Q24: 0 | S24: 13 | T24: 40.76309603 | U24: 305.7232202 | V24: 475.5694537 | W24: 822.0557699
B25: 27 | C25: Revisão | D25: Sim | G25: 29.17341082 | H25: 0.6838717812 | I25: 4.051615344 | J25: 31.05161534 | K25: 30 | L25: 29.17341082 | M25: Acidente | N25: 1 | O25: 1 | P25: 0 | Q25: 0 | S25: 14 | T25: 39.39393939 | U25: 333.3333333 | V25: 303.030303 | W25: 675.7575758
B26: 29.17341082 | C26: Acidente | D26: Sim | E26: =IF(C26="Acidente", RAND(),"") -> 0.9256640181 | F26: 0.9269272986 | G26: 30.10033811 | H26: 0.7189793943 | I26: 4.156938183 | J26: 33.330349 | K26: 30 | L26: 30 | M26: =IF(G26<(L26+0.09),"Acidente",IF(J26<K26,"Avaria","Revisão")) -> Revisão | N26: 1 | O26: 0 | P26: 0 | Q26: 1 | S26: 15 | T26: 46.66666667 | U26: 333.3333333 | V26: 400 | W26: 780
E27: Total | F27: Mês | N27: =SUM(N11:N26) -> 11 | O27: =SUM(O11:O26) -> 9 | P27: =SUM(P11:P26) -> 4 | Q27: =SUM(Q11:Q26) -> 3 | S27: 16 | T27: 40.74074074 | U27: 333.3333333 | V27: 518.5185185 | W27: 892.5925926
B28: Custo das peças | E28: =N27*E5 -> 1100 | F28: =+E28/$B$26 -> 37.70556713 | H28: Intervalo de Confiança a | K28: 0.95 | S28: 17 | T28: 40.74074074 | U28: 333.3333333 | V28: 518.5185185 | W28: 892.5925926
B29: Custo das revisões | E29: =+O27*E6 -> 9000 | F29: =+E29/$B$26 -> 308.5000947 | I29: Custos Mensais Totais | S29: 18 | T29: 40.86174111 | U29: 314.3210854 | V29: 377.1853025 | W29: 732.3681291
B30: Custos De paragens | E30: =+E7*(P27+Q27) -> 14000 | F30: =+E30/$B$26 -> 479.8890362 | S30: 19 | T30: 44.44444444 | U30: 333.3333333 | V30: 518.5185185 | W30: 896.2962963
B31: Custo Total | E31: =+E28+E29+E30 -> 24100 | F31: =+E31/$B$26 -> 826.0946981 | H31: Limite Inferior | K31: Limite Superior | S31: 20 | T31: 50 | U31: 333.3333333 | V31: 666.6666667 | W31: 1050
H32: =+$W$10-$W$9/SQRT($S$160+1)*TINV(1-$K$28,$S$160) -> 817.268503 | K32: =+$W$10+$W$9/SQRT($S$160+1)*TINV(1-$K$28,$S$160) -> 867.6014244 | S32: 21 | T32: 43.33333333 | U32: 333.3333333 | V32: 400 | W32: 776.6666667
S33: 22 | T33: 36.36363636 | U33: 333.3333333 | V33: 303.030303 | W33: 672.7272727
S34: 23 | T34: 39.39393939 | U34: 333.3333333 | V34: 303.030303 | W34: 675.7575758
S35: 24 | T35: 39.39393939 | U35: 333.3333333 | V35: 303.030303 | W35: 675.7575758
S36: 25 | T36: 35.8974359 | U36: 333.3333333 | V36: 153.8461538 | W36: 523.0769231
S37: 26 | T37: 44.44444444 | U37: 333.3333333 | V37: 518.5185185 | W37: 896.2962963
S38: 27 | T38: 40 | U38: 333.3333333 | V38: 400 | W38: 773.3333333
S39: 28 | T39: 45.83333333 | U39: 333.3333333 | V39: 666.6666667 | W39: 1045.833333
S40: 29 | T40: 44.90170524 | U40: 299.3447016 | V40: 598.6894032 | W40: 942.93581
S41: 30 | T41: 45.83333333 | U41: 333.3333333 | V41: 666.6666667 | W41: 1045.833333
S42: 31 | T42: 36.36363636 | U42: 333.3333333 | V42: 303.030303 | W42: 672.7272727
S43: 32 | T43: 44.47009667 | U43: 296.4673112 | V43: 592.9346223 | W43: 933.8720301
S44: 33 | T44: 40.71291061 | U44: 305.3468296 | V44: 474.9839572 | W44: 821.0436974
S45: 34 | T45: 41.66666667 | U45: 333.3333333 | V45: 222.2222222 | W45: 597.2222222
S46: 35 | T46: 44.44444444 | U46: 333.3333333 | V46: 518.5185185 | W46: 896.2962963
S47: 36 | T47: 45.45454545 | U47: 333.3333333 | V47: 303.030303 | W47: 681.8181818
S48: 37 | T48: 48.27374125 | U48: 321.8249417 | V48: 643.6498833 | W48: 1013.748566
S49: 38 | T49: 36.11111111 | U49: 333.3333333 | V49: 222.2222222 | W49: 591.6666667
S50: 39 | T50: 40.74074074 | U50: 333.3333333 | V50: 518.5185185 | W50: 892.5925926
S51: 40 | T51: 50 | U51: 333.3333333 | V51: 666.6666667 | W51: 1050
S52: 41 | T52: 36.36363636 | U52: 333.3333333 | V52: 303.030303 | W52: 672.7272727
S53: 42 | T53: 46.66666667 | U53: 333.3333333 | V53: 400 | W53: 780
S54: 43 | T54: 47.32971008 | U54: 301.1890642 | V54: 774.486165 | W54: 1123.004939
S55: 44 | T55: 36.36363636 | U55: 333.3333333 | V55: 303.030303 | W55: 672.7272727
S56: 45 | T56: 44.44444444 | U56: 333.3333333 | V56: 518.5185185 | W56: 896.2962963
S57: 46 | T57: 39.39393939 | U57: 303.030303 | V57: 363.6363636 | W57: 706.0606061
S58: 47 | T58: 47.97932339 | U58: 305.322967 | V58: 785.1162009 | W58: 1138.418491
S59: 48 | T59: 47.66674059 | U59: 306.4290466 | V59: 476.6674059 | W59: 830.7631931
S60: 49 | T60: 42.42424242 | U60: 333.3333333 | V60: 303.030303 | W60: 678.7878788
S61: 50 | T61: 38.90253031 | U61: 311.2202425 | V61: 622.440485 | W61: 972.5632578
S62: 51 | T62: 43.335955 | U62: 315.1705818 | V62: 630.3411636 | W62: 988.8477004
S63: 52 | T63: 46.30298654 | U63: 308.6865769 | V63: 617.3731539 | W63: 972.3627174
S64: 53 | T64: 36.66666667 | U64: 333.3333333 | V64: 400 | W64: 770
S65: 54 | T65: 40 | U65: 333.3333333 | V65: 400 | W65: 773.3333333
S66: 55 | T66: 36.11111111 | U66: 333.3333333 | V66: 222.2222222 | W66: 591.6666667
S67: 56 | T67: 42.85645724 | U67: 321.4234293 | V67: 499.9920012 | W67: 864.2718878
S68: 57 | T68: 42.44396531 | U68: 308.6833841 | V68: 617.3667681 | W68: 968.4941175
S69: 58 | T69: 39.39393939 | U69: 333.3333333 | V69: 303.030303 | W69: 675.7575758
S70: 59 | T70: 36.66666667 | U70: 333.3333333 | V70: 400 | W70: 770
S71: 60 | T71: 42.02147973 | U71: 315.1610979 | V71: 490.2505968 | W71: 847.4331745
S72: 61 | T72: 38.32412221 | U72: 313.5609999 | V72: 487.7615554 | W72: 839.6466775
S73: 62 | T73: 46.18858027 | U73: 293.927329 | V73: 755.8131318 | W73: 1095.929041
S74: 63 | T74: 44.21559069 | U74: 321.5679323 | V74: 643.1358646 | W74: 1008.919388
S75: 64 | T75: 42.42424242 | U75: 333.3333333 | V75: 303.030303 | W75: 678.7878788
S76: 65 | T76: 41.41853705 | U76: 310.6390279 | V76: 483.2162656 | W76: 835.2738306
S77: 66 | T77: 43.77899288 | U77: 321.0459478 | V77: 291.8599525 | W77: 656.6848932
S78: =+S77+1 -> 67 | T78: 45.83333333 | U78: 333.3333333 | V78: 666.6666667 | W78: 1045.833333
S79: 68 | T79: 50 | U79: 333.3333333 | V79: 666.6666667 | W79: 1050
S80: 69 | T80: 37.70545121 | U80: 301.6436097 | V80: 603.2872194 | W80: 942.6362803
S81: 70 | T81: 42.21809361 | U81: 307.0406808 | V81: 614.0813617 | W81: 963.3401361
S82: 71 | T82: 43.33333333 | U82: 333.3333333 | V82: 400 | W82: 776.6666667
S83: 72 | T83: 45.83333333 | U83: 333.3333333 | V83: 666.6666667 | W83: 1045.833333
S84: 73 | T84: 40 | U84: 333.3333333 | V84: 400 | W84: 773.3333333
S85: 74 | T85: 48.48484848 | U85: 333.3333333 | V85: 303.030303 | W85: 684.8484848
S86: 75 | T86: 48.14814815 | U86: 333.3333333 | V86: 518.5185185 | W86: 900
S87: 76 | T87: 45.45454545 | U87: 333.3333333 | V87: 303.030303 | W87: 681.8181818
S88: 77 | T88: 36.11111111 | U88: 333.3333333 | V88: 222.2222222 | W88: 591.6666667
S89: 78 | T89: 48.14814815 | U89: 333.3333333 | V89: 518.5185185 | W89: 900
S90: 79 | T90: 40.74074074 | U90: 333.3333333 | V90: 518.5185185 | W90: 892.5925926
S91: 80 | T91: 41.83522554 | U91: 304.2561857 | V91: 608.5123715 | W91: 954.6037827
S92: 81 | T92: 43.33333333 | U92: 333.3333333 | V92: 400 | W92: 776.6666667
S93: 82 | T93: 44.44444444 | U93: 333.3333333 | V93: 518.5185185 | W93: 896.2962963
S94: 83 | T94: 38.88888889 | U94: 333.3333333 | V94: 222.2222222 | W94: 594.4444444
S95: 84 | T95: 38.88888889 | U95: 333.3333333 | V95: 222.2222222 | W95: 594.4444444
S96: 85 | T96: 50 | U96: 333.3333333 | V96: 400 | W96: 783.3333333
S97: 86 | T97: 47.61904762 | U97: 333.3333333 | V97: 857.1428571 | W97: 1238.095238
S98: 87 | T98: 41.90182654 | U98: 322.3217426 | V98: 386.7860911 | W98: 751.0096603
S99: 88 | T99: 36.4504536 | U99: 308.4269151 | V99: 280.3881046 | W99: 625.2654732
S100: 89 | T100: 41.46668938 | U100: 318.9745337 | V100: 382.7694404 | W100: 743.2106635
S101: 90 | T101: 45.83333333 | U101: 333.3333333 | V101: 666.6666667 | W101: 1045.833333
S102: 91 | T102: 46.66666667 | U102: 333.3333333 | V102: 400 | W102: 780
S103: 92 | T103: 36.11111111 | U103: 333.3333333 | V103: 222.2222222 | W103: 591.6666667
S104: 93 | T104: 48.14814815 | U104: 333.3333333 | V104: 518.5185185 | W104: 900
S105: 94 | T105: 46.66666667 | U105: 333.3333333 | V105: 400 | W105: 780
S106: 95 | T106: 44.2634392 | U106: 306.4391945 | V106: 476.6831914 | W106: 827.3858251
S107: 96 | T107: 45.06722753 | U107: 300.4481835 | V107: 600.896367 | W107: 946.4117781
S108: 97 | T108: 46.35140606 | U108: 294.9634931 | V108: 758.4775538 | W108: 1099.792453
S109: 98 | T109: 43.77546625 | U109: 318.3670273 | V109: 636.7340546 | W109: 998.8765481
S110: 99 | T110: 39.39393939 | U110: 303.030303 | V110: 363.6363636 | W110: 706.0606061
S111: 100 | T111: 39.9428471 | U111: 319.5427768 | V111: 639.0855537 | W111: 998.5711776
S112: 101 | T112: 41.82940805 | U112: 306.7489924 | V112: 278.8627204 | W112: 627.4411208
S113: 102 | T113: 40.74074074 | U113: 333.3333333 | V113: 518.5185185 | W113: 892.5925926
S114: 103 | T114: 47.74859192 | U114: 330.5671748 | V114: 514.2156052 | W114: 892.531372
S115: 104 | T115: 54.16666667 | U115: 333.3333333 | V115: 666.6666667 | W115: 1054.166667
S116: 105 | T116: 40.74074074 | U116: 333.3333333 | V116: 518.5185185 | W116: 892.5925926
S117: 106 | T117: 39.96448448 | U117: 307.4191114 | V117: 368.9029336 | W117: 716.2865294
S118: 107 | T118: 36.66666667 | U118: 333.3333333 | V118: 400 | W118: 770
S119: 108 | T119: 40.39973546 | U119: 310.7671959 | V119: 372.920635 | W119: 724.0875664
S120: 109 | T120: 43.33333333 | U120: 333.3333333 | V120: 400 | W120: 776.6666667
S121: 110 | T121: 44.44444444 | U121: 333.3333333 | V121: 518.5185185 | W121: 896.2962963
S122: 111 | T122: 44.52239758 | U122: 296.8159838 | V122: 593.6319677 | W122: 934.9703491
S123: 112 | T123: 39.39393939 | U123: 333.3333333 | V123: 303.030303 | W123: 675.7575758
S124: 113 | T124: 51.8789126 | U124: 296.4509291 | V124: 592.9018582 | W124: 941.2316999
S125: 114 | T125: 50 | U125: 333.3333333 | V125: 666.6666667 | W125: 1050
S126: 115 | T126: 40.55010052 | U126: 311.9238502 | V126: 374.3086202 | W126: 726.7825709
S127: 116 | T127: 40.74074074 | U127: 333.3333333 | V127: 518.5185185 | W127: 892.5925926
S128: 117 | T128: 37.03703704 | U128: 333.3333333 | V128: 518.5185185 | W128: 888.8888889
S129: 118 | T129: 42.42424242 | U129: 333.3333333 | V129: 303.030303 | W129: 678.7878788
S130: 119 | T130: 40 | U130: 333.3333333 | V130: 400 | W130: 773.3333333
S131: 120 | T131: 40 | U131: 333.3333333 | V131: 400 | W131: 773.3333333
S132: 121 | T132: 44.44444444 | U132: 333.3333333 | V132: 518.5185185 | W132: 896.2962963
S133: 122 | T133: 48.76820708 | U133: 313.5099026 | V133: 487.6820708 | W133: 849.9601805
S134: 123 | T134: 45.83333333 | U134: 333.3333333 | V134: 666.6666667 | W134: 1045.833333
S135: 124 | T135: 51.32808258 | U135: 326.6332528 | V135: 839.9140786 | W135: 1217.875414
S136: 125 | T136: 40.74074074 | U136: 333.3333333 | V136: 518.5185185 | W136: 892.5925926
S137: 126 | T137: 52.38095238 | U137: 333.3333333 | V137: 857.1428571 | W137: 1242.857143
S138: 127 | T138: 36.66666667 | U138: 333.3333333 | V138: 400 | W138: 770
S139: 128 | T139: 41.13120351 | U139: 299.1360255 | V139: 598.2720511 | W139: 938.5392802
S140: 129 | T140: 54.21025451 | U140: 291.9013705 | V140: 750.603524 | W140: 1096.715149
S141: 130 | T141: 36.11111111 | U141: 333.3333333 | V141: 222.2222222 | W141: 591.6666667
S142: =+S141+1 -> 131 | T142: 46.66666667 | U142: 333.3333333 | V142: 400 | W142: 780
S143: 132 | T143: 48.14814815 | U143: 333.3333333 | V143: 518.5185185 | W143: 900
S144: 133 | T144: 40.74074074 | U144: 333.3333333 | V144: 518.5185185 | W144: 892.5925926
S145: 134 | T145: 42.55752736 | U145: 319.1814552 | V145: 496.5044858 | W145: 858.2434683
S146: 135 | T146: 42.30048759 | U146: 296.1034131 | V146: 761.4087766 | W146: 1099.812677
S147: 136 | T147: 40 | U147: 333.3333333 | V147: 400 | W147: 773.3333333
S148: 137 | T148: 36.66666667 | U148: 333.3333333 | V148: 400 | W148: 770
S149: 138 | T149: 40.7096521 | U149: 305.3223907 | V149: 474.9459411 | W149: 820.9779839
S150: 139 | T150: 54.33332846 | U150: 316.944416 | V150: 814.9999269 | W150: 1186.277671
S151: 140 | T151: 36.66666667 | U151: 333.3333333 | V151: 400 | W151: 770
S152: 141 | T152: 50 | U152: 333.3333333 | V152: 666.6666667 | W152: 1050
S153: 142 | T153: 38.88888889 | U153: 333.3333333 | V153: 222.2222222 | W153: 594.4444444
S154: 143 | T154: 51.85185185 | U154: 333.3333333 | V154: 518.5185185 | W154: 903.7037037
S155: 144 | T155: 39.39393939 | U155: 333.3333333 | V155: 303.030303 | W155: 675.7575758
S156: 145 | T156: 43.33333333 | U156: 333.3333333 | V156: 400 | W156: 776.6666667
S157: 146 | T157: 40 | U157: 333.3333333 | V157: 400 | W157: 773.3333333
S158: 147 | T158: 47.64004454 | U158: 306.2574292 | V158: 476.4004454 | W158: 830.2979191
S159: 148 | T159: 36.66666667 | U159: 333.3333333 | V159: 400 | W159: 770
S160: 149 | T160: 39.52786725 | U160: 323.4098229 | V160: 503.0819468 | W160: 866.019637

Sheet Sheet2

Sheet Sheet3
